fUST/lending_fUST_20260117
["ID","MTS","AMOUNT","RATE_DAILY","PERIOD"]
[402293687,1768650632313,-500.0,0.00012696,2]
[402293689,1768650632323,-500.0,0.00012696,2]
[402293691,1768650632332,-500.0,0.00012696,2]
[402293693,1768650632341,-500.0,0.00012696,2]
[402293695,1768650632351,-500.0,0.00012696,2]
[402293697,1768650632360,-500.0,0.00012696,2]
[402293699,1768650632369,-500.0,0.00012696,2]
[402293701,1768650632379,-500.0,0.00012696,2]
[402293703,1768650632388,-500.0,0.00012696,2]
[402293705,1768650632397,-500.0,0.00012696,2]
[402293707,1768650632407,-500.0,0.00012696,2]
[402293709,1768650632416,-500.0,0.00012696,2]
[402293711,1768650632425,-500.0,0.00012696,2]
[402293713,1768650632435,-500.0,0.00012696,2]
[402293715,1768650632445,-500.0,0.00012696,2]
[402293717,1768650632454,-500.0,0.00012696,2]
[402293719,1768650632463,-480.50682407,0.00012696,2]
[402293721,1768650632474,-500.0,0.00012696,2]
[402293723,1768650632484,-500.0,0.00012696,2]
[402293725,1768650632493,-500.0,0.00012696,2]
[402293727,1768650632502,-500.0,0.00012696,2]
[402293738,1768650632667,-500.0,0.00012696,2]
[402293739,1768650632690,-500.0,0.00012696,2]
[402293740,1768650632700,-500.0,0.00012696,2]
[402293741,1768650632709,-500.0,0.00012696,2]
[402293742,1768650632719,-500.0,0.00012696,2]
[402293743,1768650632728,-500.0,0.00012696,2]
[402293744,1768650632738,-500.0,0.00012696,2]
[402293745,1768650632748,-500.0,0.00012696,2]
[402293746,1768650632757,-500.0,0.00012696,2]
[402293747,1768650632766,-500.0,0.00012696,2]
[402293748,1768650632775,-500.0,0.00012696,2]
[402293749,1768650632785,-500.0,0.00012696,2]
[402293750,1768650632795,-500.0,0.00012696,2]
[402293751,1768650632806,-500.0,0.00012696,2]
[402293752,1768650632815,-500.0,0.00012696,2]
[402293753,1768650632825,-500.0,0.00012696,2]
[402293754,1768650632836,-500.0,0.00012696,2]
[402293755,1768650632846,-500.0,0.00012696,2]
[402293756,1768650632855,-500.0,0.00012696,2]
[402293757,1768650632865,-500.0,0.00012696,2]
[402293758,1768650632876,-500.0,0.00012696,2]
[402293759,1768650632888,-576.58990595,0.00012696,2]
[402293760,1768650632900,-500.0,0.00012696,2]
[402293761,1768650632910,-500.0,0.00012696,2]
[402293762,1768650632919,-500.0,0.00012696,2]
[402293763,1768650632929,-500.0,0.00012696,2]
[402293764,1768650632939,-500.0,0.00012696,2]
[402293765,1768650632949,-500.0,0.00012696,2]
[402293766,1768650632960,-500.0,0.00012696,2]
[402293767,1768650632969,-500.0,0.00012696,2]
[402293768,1768650632978,-500.0,0.00012696,2]
[402293769,1768650632988,-500.0,0.00012696,2]
[402293770,1768650632998,-500.0,0.00012696,2]
[402293771,1768650633007,-500.0,0.00012696,2]
[402293772,1768650633016,-500.0,0.00012696,2]
[402293773,1768650633026,-500.0,0.00012696,2]
[402293774,1768650633037,-500.0,0.00012696,2]
[402293775,1768650633046,-295.01290159,0.00012696,2]
[402293776,1768650633056,-500.0,0.00012696,2]
[402293777,1768650633066,-500.0,0.00012696,2]
[402293778,1768650633076,-500.0,0.00012696,2]
[402293779,1768650633086,-500.0,0.00012696,2]
[402293780,1768650633095,-500.0,0.00012696,2]
[402293781,1768650633106,-500.0,0.00012696,2]
[402293782,1768650633115,-500.0,0.00012696,2]
[402293783,1768650633124,-500.0,0.00012696,2]
[402293784,1768650633134,-500.0,0.00012696,2]
[402293785,1768650633143,-500.0,0.00012696,2]
[402293786,1768650633153,-500.0,0.00012696,2]
[402293787,1768650633163,-500.0,0.00012696,2]
[402293788,1768650633173,-500.0,0.00012696,2]
[402293789,1768650633182,-500.0,0.00012696,2]
[402293790,1768650633191,-500.0,0.00012696,2]
[402293791,1768650633201,-500.0,0.00012696,2]
[402293792,1768650633211,-500.0,0.00012696,2]
[402293793,1768650633223,-500.0,0.00012696,2]
[402293794,1768650633233,-500.0,0.00012696,2]
[402293795,1768650633242,-500.0,0.00012696,2]
[402293796,1768650633251,-500.0,0.00012696,2]
[402293797,1768650633265,-500.0,0.00012696,2]
[402293798,1768650633274,-500.0,0.00012696,2]
[402293799,1768650633283,-500.0,0.00012696,2]
[402293800,1768650633292,-500.0,0.00012696,2]
[402293801,1768650633301,-500.0,0.00012696,2]
[402293802,1768650633311,-500.0,0.00012696,2]
[402293803,1768650633320,-500.0,0.00012696,2]
[402293804,1768650633329,-210.58051996,0.00012696,2]
[402293805,1768650633338,-500.0,0.00012696,2]
[402293806,1768650633347,-500.0,0.00012696,2]
[402293807,1768650633356,-500.0,0.00012696,2]
[402293808,1768650633365,-500.0,0.00012696,2]
[402293809,1768650633375,-186.72298045,0.00012696,2]
[402293810,1768650633384,-500.0,0.00012696,2]
[402293811,1768650633393,-500.0,0.00012696,2]
[402293812,1768650633403,-500.0,0.00012696,2]
[402293813,1768650633412,-500.0,0.00012696,2]
[402293814,1768650633421,-500.0,0.00012696,2]
[402293815,1768650633431,-500.0,0.00012696,2]
[402293816,1768650633440,-500.0,0.00012696,2]
[402293817,1768650633449,-500.0,0.00012696,2]
[402293818,1768650633460,-500.0,0.00012696,2]
[402293819,1768650633469,-500.0,0.00012696,2]
[402293820,1768650633478,-450.0,0.00012696,2]
[402293821,1768650633488,-500.0,0.00012696,2]
[402293822,1768650633497,-500.0,0.00012696,2]
[402293823,1768650633506,-500.0,0.00012696,2]
[402293824,1768650633515,-500.0,0.00012696,2]
[402293825,1768650633524,-81288.58126153,0.00012697,2]
[402293826,1768650633914,-617.33109618,0.00012697,2]
[402293832,1768650638175,-572.71456598,0.00012697,2]
[402293833,1768650638232,-1515.88609225,0.00012697,2]
[402293834,1768650638244,-4840.4598424,0.00012697,2]
[402293835,1768650638257,-911165.02714166,0.00012697,2]
[402293836,1768650638268,-50000.0,0.00012794,2]
[402293837,1768650638277,-371.348,0.00012796,2]
[402293838,1768650638288,-151.0,0.000128,2]
[402293839,1768650638297,-151.0,0.000128,2]
[402293840,1768650638307,-151.0,0.000128,2]
[402293841,1768650638317,-151.0,0.000128,2]
[402293842,1768650638326,-151.0,0.000128,2]
[402293843,1768650638335,-151.0,0.000128,2]
[402293846,1768650638348,-151.0,0.000128,2]
[402293847,1768650638360,-151.0,0.000128,2]
[402293849,1768650638370,-151.0,0.000128,2]
[402293850,1768650638380,-151.0,0.000128,2]
[402293851,1768650638390,-18806.96372587,0.000128,2]
[402293852,1768650638399,-24505.41588251,0.00012812,2]
[402293853,1768650638408,-151.0,0.000129,2]
[402293854,1768650638417,-151.0,0.000129,2]
[402293855,1768650638426,-151.0,0.000129,2]
[402293856,1768650638436,-151.0,0.000129,2]
[402293857,1768650638445,-151.0,0.000129,2]
[402293858,1768650638455,-151.0,0.000129,2]
[402293859,1768650638464,-151.0,0.000129,2]
[402293860,1768650638473,-151.0,0.000129,2]
[402293861,1768650638483,-151.0,0.000129,2]
[402293862,1768650638492,-151.0,0.000129,2]
[402293863,1768650638502,-151.0,0.000129,2]
[402293864,1768650638511,-151.0,0.000129,2]
[402293865,1768650638520,-5676.95783208,0.000129,2]
[402293866,1768650638530,-180.95,0.00012955,2]
[402293867,1768650638540,-500.0,0.00013137,2]
[402293868,1768650638549,-500.0,0.00013273,2]
[402293869,1768650638559,-500.0,0.00013273,2]
[402293870,1768650638568,-500.0,0.00013273,2]
[402293871,1768650638578,-500.0,0.00013273,2]
[402293872,1768650638588,-500.0,0.00013273,2]
[402293873,1768650638598,-524.62460419,0.00013273,2]
[402293874,1768650638608,-500.0,0.00013273,2]
[402293875,1768650638618,-500.0,0.00013273,2]
[402293876,1768650638627,-500.0,0.00013273,2]
[402293877,1768650638636,-500.0,0.00013273,2]
[402293878,1768650638645,-500.0,0.00013273,2]
[402293879,1768650638655,-500.0,0.00013273,2]
[402293880,1768650638664,-500.0,0.00013273,2]
[402293881,1768650638674,-500.0,0.00013273,2]
[402293882,1768650638683,-500.0,0.00013273,2]
[402293883,1768650638693,-500.0,0.00013273,2]
[402293884,1768650638702,-158.0,0.00013273,2]
[402293885,1768650638711,-500.0,0.00013273,2]
[402293886,1768650638720,-500.0,0.00013273,2]
[402293887,1768650638730,-440.24648614,0.00013273,2]
[402293888,1768650638740,-500.0,0.00013273,2]
[402293889,1768650638749,-500.0,0.00013274,2]
[402293890,1768650638759,-466.5089198,0.00013411,2]
[402293891,1768650638769,-326.0,0.00013622,2]
[402293892,1768650638778,-326.0,0.00013639,2]
[402293893,1768650638788,-150.74696944,0.00013685,2]
[402293894,1768650638798,-1000.0,0.00013698,2]
[402293895,1768650638807,-1000.0,0.00013698,2]
[402293896,1768650638817,-1000.0,0.00013698,2]
[402293897,1768650638826,-1000.0,0.00013698,2]
[402293898,1768650638836,-1000.0,0.00013698,2]
[402293899,1768650638845,-1000.0,0.00013698,2]
[402293900,1768650638855,-1000.0,0.00013698,2]
[402293901,1768650638866,-1019.17213815,0.00013698,2]
[402293902,1768650638876,-500.0,0.00013698,2]
[402293903,1768650638886,-500.0,0.00013698,2]
[402293904,1768650638896,-500.0,0.00013698,2]
[402293905,1768650638906,-500.0,0.00013698,2]
[402293906,1768650638916,-500.0,0.00013698,2]
[402293907,1768650638926,-500.0,0.00013698,2]
[402293908,1768650638936,-500.0,0.00013698,2]
[402293909,1768650638947,-500.0,0.00013698,2]
[402293910,1768650638957,-500.0,0.00013698,2]
[402293911,1768650638967,-500.0,0.00013698,2]
[402293912,1768650638977,-500.0,0.00013698,2]
[402293913,1768650638987,-550.10841888,0.00013698,2]
[402293914,1768650638997,-1974.72,0.00013698,2]
[402293915,1768650639007,-1974.72,0.00013698,2]
[402293916,1768650639017,-1974.72,0.00013698,2]
[402293917,1768650639027,-1974.72,0.00013698,2]
[402293918,1768650639038,-1974.72,0.00013698,2]
[402293919,1768650639048,-1974.72,0.00013698,2]
[402293920,1768650639059,-1974.72,0.00013698,2]
[402293921,1768650639069,-1974.72,0.00013698,2]
[402293922,1768650639079,-1974.72,0.00013698,2]
[402293923,1768650639089,-1974.72,0.00013698,2]
[402293924,1768650639099,-1974.72,0.00013698,2]
[402293925,1768650639108,-1974.72,0.00013698,2]
[402293926,1768650639117,-1974.72,0.00013698,2]
[402293927,1768650639128,-1974.72,0.00013698,2]
[402293928,1768650639139,-1974.72,0.00013698,2]
[402293929,1768650639150,-1974.72,0.00013698,2]
[402293930,1768650639161,-1974.72,0.00013698,2]
[402293931,1768650639172,-1974.72,0.00013698,2]
[402293932,1768650639183,-1974.72,0.00013698,2]
[402293933,1768650639193,-1974.72,0.00013698,2]
[402293934,1768650639203,-1974.72,0.00013698,2]
[402293935,1768650639213,-1974.72,0.00013698,2]
[402293936,1768650639228,-1974.72,0.00013698,2]
[402293937,1768650639238,-1974.90222486,0.00013698,2]
[402293938,1768650639247,-500.0,0.00013698,2]
[402293939,1768650639258,-541.65,0.00013698,2]
[402293940,1768650639268,-541.65,0.00013698,2]
[402293941,1768650639278,-541.65,0.00013698,2]
[402293942,1768650639288,-541.65,0.00013698,2]
[402293943,1768650639298,-541.65,0.00013698,2]
[402293944,1768650639307,-541.65,0.00013698,2]
[402293945,1768650639316,-541.65,0.00013698,2]
[402293946,1768650639326,-541.65,0.00013698,2]
[402293947,1768650639335,-541.65,0.00013698,2]
[402293948,1768650639344,-541.65,0.00013698,2]
[402293949,1768650639354,-541.65,0.00013698,2]
[402293950,1768650639364,-541.65,0.00013698,2]
[402293951,1768650639373,-541.65,0.00013698,2]
[402293952,1768650639383,-541.65,0.00013698,2]
[402293953,1768650639392,-541.65,0.00013698,2]
[402293954,1768650639402,-541.65,0.00013698,2]
[402293955,1768650639412,-541.65,0.00013698,2]
[402293956,1768650639422,-541.65,0.00013698,2]
[402293957,1768650639432,-500.0,0.00013698,2]
[402293958,1768650639442,-500.0,0.00013698,2]
[402293959,1768650639451,-500.0,0.00013698,2]
[402293960,1768650639461,-500.0,0.00013698,2]
[402293961,1768650639470,-283.56730347,0.00013698,2]
[402293962,1768650639479,-500.0,0.00013698,2]
[402293963,1768650639489,-500.0,0.00013698,2]
[402293964,1768650639498,-500.0,0.00013698,2]
[402293965,1768650639509,-500.0,0.00013698,2]
[402293966,1768650639518,-500.0,0.00013698,2]
[402293967,1768650639529,-500.0,0.00013698,2]
[402293968,1768650639538,-500.0,0.00013698,2]
[402293969,1768650639549,-500.0,0.00013698,2]
[402293970,1768650639558,-582.50112986,0.00013698,2]
[402293971,1768650639567,-504.02212957,0.00013698,2]
[402293972,1768650639577,-500.0,0.00013698,2]
[402293973,1768650639586,-500.0,0.00013698,2]
[402293974,1768650639596,-500.0,0.00013698,2]
[402293975,1768650639605,-500.0,0.00013698,2]
[402293976,1768650639615,-500.0,0.00013698,2]
[402293977,1768650639624,-500.0,0.00013698,2]
[402293978,1768650639634,-500.0,0.00013698,2]
[402293979,1768650639644,-500.0,0.00013698,2]
[402293980,1768650639654,-500.0,0.00013698,2]
[402293981,1768650639664,-500.0,0.00013698,2]
[402293982,1768650639673,-500.0,0.00013698,2]
[402293983,1768650639682,-500.0,0.00013698,2]
[402293984,1768650639692,-500.0,0.00013698,2]
[402293986,1768650639702,-500.0,0.00013698,2]
[402293988,1768650639712,-500.0,0.00013698,2]
[402293989,1768650639722,-500.0,0.00013698,2]
[402293990,1768650639731,-500.0,0.00013698,2]
[402293991,1768650639740,-500.0,0.00013698,2]
[402293993,1768650639749,-500.0,0.00013698,2]
[402293994,1768650639759,-500.0,0.00013698,2]
[402293995,1768650639768,-500.0,0.00013698,2]
[402293996,1768650639777,-500.0,0.00013698,2]
[402293997,1768650639787,-500.0,0.00013698,2]
[402293998,1768650639797,-500.0,0.00013698,2]
[402294000,1768650639806,-500.0,0.00013698,2]
[402294001,1768650639815,-500.0,0.00013698,2]
[402294002,1768650639824,-500.0,0.00013698,2]
[402294003,1768650639833,-500.0,0.00013698,2]
[402294004,1768650639843,-611.38007014,0.00013698,2]
[402294005,1768650639853,-520.97489012,0.00013698,2]
[402294006,1768650639862,-500.0,0.00013698,2]
[402294007,1768650639874,-500.0,0.00013698,2]
[402294008,1768650639885,-500.0,0.00013698,2]
[402294009,1768650639895,-500.0,0.00013698,2]
[402294010,1768650639904,-567.1775226,0.00013698,2]
[402294012,1768650639913,-560.05724626,0.00013698,2]
[402294014,1768650639922,-567.7923432,0.00013698,2]
[402294015,1768650639932,-58387.6423223,0.00013699,2]
[402294016,1768650639941,-500.0,0.00013699,2]
[402294017,1768650639950,-500.0,0.00013699,2]
[402294018,1768650639960,-500.0,0.00013699,2]
[402294020,1768650639969,-500.0,0.00013699,2]
[402294022,1768650639978,-186.53198003,0.00013699,2]
[402294023,1768650639987,-500.0,0.00013699,2]
[402294024,1768650639997,-501.82620036,0.00013699,2]
[402294025,1768650640007,-313.78216061,0.00013699,2]
[402294026,1768650640016,-500.0,0.00013699,2]
[402294027,1768650640026,-622.93942038,0.00013699,2]
[402294028,1768650640035,-500.0,0.00013699,2]
[402294029,1768650640045,-158.0,0.00013699,2]
[402294030,1768650640055,-238.0,0.00013699,2]
[402294031,1768650640064,-158.2,0.00013699,2]
[402294032,1768650640074,-500.0,0.00013699,2]
[402294033,1768650640084,-500.0,0.00013699,2]
[402294034,1768650640093,-500.0,0.00013699,2]
[402294036,1768650640103,-500.0,0.00013699,2]
[402294038,1768650640112,-500.0,0.00013699,2]
[402294040,1768650640122,-500.0,0.00013699,2]
[402294041,1768650640131,-526.87,0.00013699,2]
[402294042,1768650640141,-500.0,0.00013699,2]
[402294043,1768650640151,-158.0,0.00013699,2]
[402294044,1768650640161,-500.0,0.00013699,2]
[402294045,1768650640170,-207.07964308,0.00013699,2]
[402294046,1768650640249,-316.71660278,0.00013712,2]
[402294047,1768650640261,-326.0,0.00013718,2]
[402294048,1768650640272,-2316.47642702,0.00013734,2]
[402294049,1768650640282,-541.65,0.00013742,2]
[402294050,1768650640295,-541.65,0.00013742,2]
[402294052,1768650640305,-541.65,0.00013742,2]
[402294054,1768650640314,-541.65,0.00013742,2]
[402294056,1768650640324,-541.65,0.00013742,2]
[402294058,1768650640332,-541.83,0.00013742,2]
[402294060,1768650640342,-326.0,0.00013755,2]
[402294062,1768650640351,-5676.95783206,0.00013757,2]
[402294064,1768650640360,-326.0,0.00013803,2]
[402294065,1768650640369,-505.25947973,0.00013821,2]
[402294068,1768650640379,-1076.76891952,0.00013821,2]
[402294070,1768650640389,-1000.0,0.00013821,2]
[402294072,1768650640398,-453.71259255,0.00013821,2]
[402294074,1768650640407,-1000.0,0.00013821,2]
[402294076,1768650640417,-500.0,0.00013821,2]
[402294078,1768650640426,-500.0,0.00013821,2]
[402294080,1768650640436,-1000.0,0.00013821,2]
[402294082,1768650640446,-1000.0,0.00013821,2]
[402294084,1768650640455,-1000.0,0.00013821,2]
[402294085,1768650640463,-522.04357159,0.00013821,2]
[402294087,1768650640473,-1000.0,0.00013821,2]
[402294088,1768650640482,-537.82543774,0.00013821,2]
[402294089,1768650640492,-180.0285874,0.00013822,2]
[402294090,1768650640501,-205.45489568,0.00013868,2]
[402294091,1768650640510,-420.0,0.00013926,2]
[402294092,1768650640519,-100000.0,0.00014006,2]
[402294093,1768650640528,-326.0,0.00014006,2]
[402294094,1768650640538,-326.0,0.00014071,2]
[402294095,1768650640547,-326.0,0.00014082,2]
[402294096,1768650640556,-326.0,0.00014157,2]
[402294098,1768650640565,-178.0,0.00014233,2]
[402294099,1768650640574,-310.63775509,0.00014247,2]
[402294101,1768650640584,-1000.0,0.00014247,2]
[402294103,1768650640593,-587.52830239,0.00014247,2]
[402294105,1768650640602,-1000.0,0.00014247,2]
[402294106,1768650640611,-748.3708511,0.00014247,2]
[402294107,1768650640620,-1000.0,0.00014247,2]
[402294109,1768650640629,-250.0,0.00014247,2]
[402294110,1768650640638,-920.73215922,0.00014247,2]
[402294112,1768650640647,-1140.95571878,0.00014247,2]
[402294114,1768650640656,-505.85156425,0.00014247,2]
[402294115,1768650640665,-500.85672121,0.00014247,2]
[402294116,1768650640674,-1000.0,0.00014247,2]
[402294117,1768650640683,-1000.0,0.00014247,2]
[402294118,1768650640692,-502.90945713,0.00014247,2]
[402294119,1768650640702,-155.0,0.00014251,2]
[402294120,1768650640711,-151.0,0.00014254,2]
[402294121,1768650640720,-2150.738,0.00014254,2]
[402294122,1768650640730,-151.0,0.00014254,2]
[402294123,1768650640739,-151.0,0.00014254,2]
[402294124,1768650640748,-151.0,0.00014254,2]
[402294125,1768650640756,-151.0,0.00014254,2]
[402294126,1768650640766,-151.0,0.00014254,2]
[402294127,1768650640775,-151.0,0.00014254,2]
[402294128,1768650640784,-254.35522609,0.00014254,2]
[402294129,1768650640793,-162.380719,0.00014254,2]
[402294130,1768650640802,-445.202766,0.00014254,2]
[402294131,1768650640811,-168.3888056,0.00014254,2]
[402294132,1768650640820,-174.61919141,0.00014254,2]
[402294133,1768650640829,-181.08010149,0.00014254,2]
[402294134,1768650640838,-187.78006525,0.00014254,2]
[402294135,1768650640847,-194.72792766,0.00014254,2]
[402294136,1768650640856,-201.93286099,0.00014254,2]
[402294137,1768650640865,-209.40437684,0.00014254,2]
[402294138,1768650640875,-217.15233878,0.00014254,2]
[402294139,1768650640885,-225.18697532,0.00014254,2]
[402294140,1768650640895,-233.51889341,0.00014254,2]
[402294141,1768650640905,-242.15909246,0.00014254,2]
[402294142,1768650640915,-251.11897888,0.00014254,2]
[402294143,1768650640925,-260.4103811,0.00014254,2]
[402294144,1768650640936,-270.0455652,0.00014254,2]
[402294145,1768650640945,-280.03725112,0.00014254,2]
[402294146,1768650640954,-290.39862941,0.00014254,2]
[402294147,1768650640963,-301.1433787,0.00014254,2]
[402294148,1768650640972,-326.0,0.00014285,2]
[402294149,1768650640981,-326.0,0.00014309,2]
[402294150,1768650640991,-326.0,0.00014325,2]
[402294151,1768650641000,-326.0,0.00014326,2]
[402294152,1768650641009,-326.0,0.00014343,2]
[402294153,1768650641018,-1500.0,0.00014368,2]
[402294154,1768650641027,-500.0,0.00014368,2]
[402294155,1768650641037,-500.0,0.00014368,2]
[402294156,1768650641047,-1500.0,0.00014368,2]
[402294157,1768650641056,-500.85139614,0.00014368,2]
[402294158,1768650641066,-1470.89070314,0.00014368,2]
[402294159,1768650641076,-326.0,0.00014395,2]
[402294160,1768650641085,-326.0,0.00014504,2]
[402294161,1768650641095,-326.0,0.00014508,2]
[402294162,1768650641107,-5000.0,0.0001451,2]
[402294163,1768650641117,-326.0,0.00014513,2]
[402294164,1768650641128,-326.0,0.00014527,2]
[402294165,1768650641138,-326.0,0.00014562,2]
[402294166,1768650641147,-326.0,0.00014592,2]
[402294167,1768650641156,-326.0,0.00014621,2]
[402294168,1768650641165,-326.0,0.00014668,2]
[402294169,1768650641175,-326.0,0.00014747,2]
[402294170,1768650641184,-660.83132082,0.00014795,2]
[402294171,1768650641194,-1493.74297815,0.00014795,2]
[402294172,1768650641204,-201.38164885,0.00014795,2]
[402294173,1768650641214,-1500.0,0.00014795,2]
[402294174,1768650641225,-1500.0,0.00014795,2]
[402294175,1768650641235,-2230.315306,0.00014802,2]
[402294176,1768650641244,-461.67526834,0.00014802,2]
[402294177,1768650641254,-326.0,0.00014896,2]
[402294178,1768650641266,-504.04282277,0.00014916,2]
[402294179,1768650641275,-2000.0,0.00014916,2]
[402294180,1768650641285,-587.0,0.00015277,2]
[402294181,1768650641295,-2000.0,0.00015342,2]
[402294182,1768650641306,-2312.83697232,0.0001535,2]
[402294183,1768650641315,-478.75725327,0.0001535,2]
[402294184,1768650641325,-973.24371897,0.000154,30]
[402294185,1768650641334,-500.0,0.00015464,2]
[402294186,1768650641343,-155.0,0.00015546,2]
[402294187,1768650641352,-365.0293049,0.00015712,2]
[402294188,1768650641361,-1306.13735223,0.0001589,2]
[402294189,1768650641371,-2398.4119403,0.00015898,2]
[402294190,1768650641379,-496.47127164,0.00015898,2]
[402294191,1768650641388,-778.0,0.000159,2]
[402294192,1768650641398,-10000.0,0.0001604,2]
[402294193,1768650641407,-637.66218595,0.0001617,30]
[402294194,1768650641416,-12790.99515906,0.00016338,2]
[402294195,1768650641424,-500.0,0.00016438,3]
[402294196,1768650641433,-644.00223298,0.00016438,3]
[402294197,1768650641443,-500.0,0.00016438,3]
[402294198,1768650641452,-500.0,0.00016438,3]
[402294199,1768650641461,-435.32524061,0.00016438,3]
[402294200,1768650641470,-500.0,0.00016438,3]
[402294201,1768650641479,-526.3812206,0.00016438,3]
[402294202,1768650641488,-500.0,0.00016438,3]
[402294203,1768650641497,-172.631544,0.00016438,3]
[402294204,1768650641506,-158.856128,0.00016438,3]
[402294205,1768650641516,-533.67555497,0.00016438,3]
[402294206,1768650641524,-500.0,0.00016438,3]
[402294207,1768650641533,-500.0,0.00016438,3]
[402294208,1768650641543,-500.0,0.00016438,3]
[402294209,1768650641552,-500.0,0.00016438,3]
[402294210,1768650641560,-500.0,0.00016438,3]
[402294211,1768650641570,-501.29993361,0.00016438,3]
[402294212,1768650641579,-500.0,0.00016438,3]
[402294213,1768650641588,-500.0,0.00016438,3]
[402294214,1768650641597,-500.0,0.00016438,3]
[402294215,1768650641606,-500.0,0.00016438,3]
[402294216,1768650641616,-500.0,0.00016438,3]
[402294217,1768650641625,-500.0,0.00016438,3]
[402294218,1768650641634,-500.0,0.00016438,3]
[402294219,1768650641643,-1408.16,0.00016438,3]
[402294220,1768650641652,-500.0,0.00016438,3]
[402294221,1768650641661,-860.8,0.00016438,3]
[402294222,1768650641671,-500.0,0.00016438,3]
[402294223,1768650641680,-500.0,0.00016438,3]
[402294224,1768650641689,-500.0,0.00016438,3]
[402294225,1768650641698,-500.0,0.00016438,3]
[402294226,1768650641708,-500.0,0.00016438,3]
[402294227,1768650641717,-500.0,0.00016438,3]
[402294228,1768650641726,-500.0,0.00016438,3]
[402294229,1768650641736,-628.08,0.00016438,3]
[402294230,1768650641745,-500.0,0.00016438,3]
[402294231,1768650641754,-500.0,0.00016438,3]
[402294232,1768650641763,-501.22117515,0.00016438,3]
[402294233,1768650641772,-500.0,0.00016438,3]
[402294234,1768650641783,-618.02349392,0.00016438,3]
[402294235,1768650641792,-500.0,0.00016438,3]
[402294236,1768650641801,-500.0,0.00016438,3]
[402294237,1768650641810,-619.68,0.00016438,3]
[402294238,1768650641819,-990.62,0.00016438,3]
[402294239,1768650641828,-500.0,0.00016438,3]
[402294240,1768650641837,-577.55,0.00016438,3]
[402294241,1768650641847,-500.0,0.00016438,3]
[402294242,1768650641856,-737.12,0.00016438,3]
[402294243,1768650641864,-500.0,0.00016438,3]
[402294244,1768650641873,-500.0,0.00016438,3]
[402294245,1768650641883,-500.0,0.00016438,3]
[402294246,1768650641892,-500.0,0.00016438,3]
[402294247,1768650641902,-500.0,0.00016438,3]
[402294248,1768650641911,-500.0,0.00016438,3]
[402294249,1768650641920,-522.78394003,0.00016438,3]
[402294250,1768650641930,-533.87958075,0.00016438,3]
[402294251,1768650641940,-1336.99,0.00016438,3]
[402294252,1768650641949,-1166.05,0.00016438,3]
[402294253,1768650641958,-666.68,0.00016438,3]
[402294254,1768650641967,-500.0,0.00016438,3]
[402294255,1768650641976,-632.04690666,0.00016438,3]
[402294256,1768650641986,-500.0,0.00016438,3]
[402294257,1768650641995,-500.0,0.00016438,3]
[402294258,1768650642004,-500.0,0.00016438,3]
[402294259,1768650642013,-500.0,0.00016438,3]
[402294260,1768650642022,-500.0,0.00016438,3]